Cogmind - Beta 10.1 @@@ ROGUE MODE // 2020.09.21 @ 17:50:40 Player: zzxc Result: Destroyed by G-67 Veteran with Plasma Rifle Performance ------------- Evolutions (7) 3500 Regions Visited (11) 2200 Robots Destroyed (2) 10 Value Destroyed (20) 20 Prototype IDs (0) 0 Alien Tech Used (0) 0 Bonus (200) 200 TOTAL SCORE: 5930 Bonus ------- Pacifist 200 Cogmind --------- Core Integrity 0/1300 Matter 300/300 Energy 98/100 System Corruption 0% Temperature Cool (12) Movement Core (50) Location -3/Research Parts ------- > --- POWER (15) ------- (None) > --- PROPULSION (2) --- (None) > --- UTILITY (2) ------ (None) > --- WEAPON (2) ------- (None) > --- INVENTORY (4) ---- (None) Peak State ------------ None Favorites ----------- Power None Propulsion None Utility None Weapon None Build | -11 -10 -9 -8 -7 -6 -5 -5 -4 -4 -4 -3 ------- Run | Scr Mat Mat Mat Fac Fac Fac Ext Fac Upp Upp Res Slots Evolved 14 | . . 2 2 2 2 2 . 2 . . 2 Power 14 | . . 2 2 2 2 2 . 2 . . 2 Propulsion . | . . . . . . . . . . . . Utility . | . . . . . . . . . . . . Weapon . | . . . . . . . . . . . . Parts Attached . | . . . . . . . . . . . . Power . | . . . . . . . . . . . . Engine . | . . . . . . . . . . . . Core . | . . . . . . . . . . . . Reactor . | . . . . . . . . . . . . Propulsion . | . . . . . . . . . . . . Treads . | . . . . . . . . . . . . Leg . | . . . . . . . . . . . . Wheel . | . . . . . . . . . . . . Hover . | . . . . . . . . . . . . Flight . | . . . . . . . . . . . . Utility . | . . . . . . . . . . . . Device . | . . . . . . . . . . . . Storage . | . . . . . . . . . . . . Processor . | . . . . . . . . . . . . Hackware . | . . . . . . . . . . . . Protection . | . . . . . . . . . . . . Artifact . | . . . . . . . . . . . . Weapon . | . . . . . . . . . . . . Energy Gun . | . . . . . . . . . . . . Energy Cannon . | . . . . . . . . . . . . Ballistic Gun . | . . . . . . . . . . . . Ballistic Cannon . | . . . . . . . . . . . . Launcher . | . . . . . . . . . . . . Special Weapon . | . . . . . . . . . . . . Impact Weapon . | . . . . . . . . . . . . Slashing Weapon . | . . . . . . . . . . . . Piercing Weapon . | . . . . . . . . . . . . Special Melee Weapon . | . . . . . . . . . . . . Unidentified Prototypes . | . . . . . . . . . . . . Parts Lost . | . . . . . . . . . . . . Power . | . . . . . . . . . . . . Propulsion . | . . . . . . . . . . . . Utility . | . . . . . . . . . . . . Weapon . | . . . . . . . . . . . . Highest Loss Streak . | . . . . . . . . . . . . Average Slot Usage (%) . | . . . . . . . . . . . . Naked Turns 973 | . 19 80 45 134 134 50 70 88 131 48 174 Heaviest Build . | . . . . . . . . . . . . Greatest Support 3 | 3 3 3 3 3 3 3 3 3 3 3 3 Greatest Overweight (x) . | . . . . . . . . . . . . Average Overweight (x) . | . . . . . . . . . . . . Largest Inventory Capacity 4 | 4 4 4 4 4 4 4 4 4 4 4 4 Average Capacity 4 | 4 4 4 4 4 4 4 4 4 4 4 4 Most Carried . | . . . . . . . . . . . . Average Carried . | . . . . . . . . . . . . Final Capacity 4 | 4 4 4 4 4 4 4 4 4 4 4 4 Final Carried . | . . . . . . . . . . . . Class Distribution -------------------- 100% | Mutant Dominant Class ---------------- Mutant | -10/Materials Mutant | -9/Materials Mutant | -8/Materials Mutant | -7/Factory Mutant | -6/Factory Mutant | -5/Factory Mutant | -5/Extension Mutant | -4/Factory Mutant | -4/Upper Caves Mutant | -4/Upper Caves Mutant | -3/Research Resources | -11 -10 -9 -8 -7 -6 -5 -5 -4 -4 -4 -3 ----------- Run | Scr Mat Mat Mat Fac Fac Fac Ext Fac Upp Upp Res Matter Collected 197 | 54 . 136 . . 7 . . . . . . Remotely . | . . . . . . . . . . . . Salvage Created 40 | . . 40 . . . . . . . . . Parts 4 | . . 4 . . . . . . . . . Haulers Intercepted . | . . . . . . . . . . . . Recyclers Shooed 1 | . . . . 1 . . . . . . . Parts Field Recycled . | . . . . . . . . . . . . Retrieved Matter . | . . . . . . . . . . . . Parts Self-Destructed . | . . . . . . . . . . . . Prevented . | . . . . . . . . . . . . Kills | -11 -10 -9 -8 -7 -6 -5 -5 -4 -4 -4 -3 ------- Run | Scr Mat Mat Mat Fac Fac Fac Ext Fac Upp Upp Res Combat Hostiles Destroyed 2 | . . 2 . . . . . . . . . Melee 2 | . . 2 . . . . . . . . . Classes Destroyed 1 | . . 1 . . . . . . . . . Swarmer 2 | . . 2 . . . . . . . . . Best Kill Streak 2 | . . 2 . . . . . . . . . Combat Bots Only 2 | . . 2 . . . . . . . . . Max Kills in Single Turn 1 | . . 1 . . . . . . . . . Gunslinging . | . . . . . . . . . . . . Exploded . | . . . . . . . . . . . . Melee 1 | . . 1 . . . . . . . . . Uniques/NPCs Destroyed . | . . . . . . . . . . . . Combat | -11 -10 -9 -8 -7 -6 -5 -5 -4 -4 -4 -3 -------- Run | Scr Mat Mat Mat Fac Fac Fac Ext Fac Upp Upp Res Damage Taken 2540 | . . 219 32 1 247 160 159 194 212 . 1316 Core 2540 | . . 219 32 1 247 160 159 194 212 . 1316 Absorbed by Shields . | . . . . . . . . . . . . Core Remaining (%) 80 | 100 100 45 94 99 70 . 68 . . 64 . Volleys Fired . | . . . . . . . . . . . . Largest . | . . . . . . . . . . . . Hottest . | . . . . . . . . . . . . Shots Fired . | . . . . . . . . . . . . Gun . | . . . . . . . . . . . . Cannon . | . . . . . . . . . . . . Launcher . | . . . . . . . . . . . . Special . | . . . . . . . . . . . . Kinetic . | . . . . . . . . . . . . Thermal . | . . . . . . . . . . . . Explosive . | . . . . . . . . . . . . Electromagnetic . | . . . . . . . . . . . . Robot Hit Streak . | . . . . . . . . . . . . Robot Miss Streak . | . . . . . . . . . . . . Penetration Max . | . . . . . . . . . . . . Secondary Targets . | . . . . . . . . . . . . Shots Hit Robots . | . . . . . . . . . . . . Core Hits 8 | . . 4 1 1 . . . 1 . . 1 Critical Hits . | . . . . . . . . . . . . Critical Kills . | . . . . . . . . . . . . Critical Parts Destroyed . | . . . . . . . . . . . . Melee Attacks . | . . . . . . . . . . . . Impact . | . . . . . . . . . . . . Slashing . | . . . . . . . . . . . . Piercing . | . . . . . . . . . . . . Sneak Attacks . | . . . . . . . . . . . . Combat Hostiles . | . . . . . . . . . . . . Follow-up Attacks . | . . . . . . . . . . . . Damage Inflicted 87 | . . 33 6 3 30 6 . 7 . . 2 Guns . | . . . . . . . . . . . . Cannons . | . . . . . . . . . . . . Explosions . | . . . . . . . . . . . . Melee . | . . . . . . . . . . . . Ramming 87 | . . 33 6 3 30 6 . 7 . . 2 Kinetic . | . . . . . . . . . . . . Thermal . | . . . . . . . . . . . . Explosive . | . . . . . . . . . . . . Electromagnetic . | . . . . . . . . . . . . Impact . | . . . . . . . . . . . . Slashing . | . . . . . . . . . . . . Piercing . | . . . . . . . . . . . . Highest Corruption 4 | . . . . . 4 . 1 . . . . Average Corruption 3 | . . . . . 3 . 1 . . . . Corruption Purged . | . . . . . . . . . . . . Effects 3 | . . . . . 3 . . . . . . Message Errors 1 | . . . . . 1 . . . . . . Matter Fused 1 | . . . . . 1 . . . . . . Heat Flow Errors 1 | . . . . . 1 . . . . . . Overload Shots . | . . . . . . . . . . . . Overflow Damage . | . . . . . . . . . . . . Projectiles . | . . . . . . . . . . . . Explosions . | . . . . . . . . . . . . Melee . | . . . . . . . . . . . . Knockbacks . | . . . . . . . . . . . . Impact . | . . . . . . . . . . . . Kinetic . | . . . . . . . . . . . . Secondary . | . . . . . . . . . . . . Self-Inflicted Damage 57 | . . 16 3 1 30 3 . 3 . . 1 Shots . | . . . . . . . . . . . . Rammed 10 | . . 5 1 1 . 1 . 1 . . 1 Targets Rammed 10 | . . 5 1 1 . 1 . 1 . . 1 Kicked . | . . . . . . . . . . . . Crushed . | . . . . . . . . . . . . Highest Temperature 143 | . . . . . 143 . . . . . . Average Temperature 87 | . . . . . 87 . . . . . . Received Heat Transfer 378 | . . 66 9 . 6 69 24 27 72 . 105 Siege Activations . | . . . . . . . . . . . . Robots Corrupted . | . . . . . . . . . . . . Combat Hostiles . | . . . . . . . . . . . . Parts Fried . | . . . . . . . . . . . . Impact Corruptions . | . . . . . . . . . . . . Robots Melted . | . . . . . . . . . . . . Combat Hostiles . | . . . . . . . . . . . . Parts Melted . | . . . . . . . . . . . . Heat Transferred . | . . . . . . . . . . . . Parts Sabotaged . | . . . . . . . . . . . . Parts Stolen . | . . . . . . . . . . . . Parts Stripped . | . . . . . . . . . . . . Power Chain Reactions . | . . . . . . . . . . . . Missiles Intercepted . | . . . . . . . . . . . . Alert | -11 -10 -9 -8 -7 -6 -5 -5 -4 -4 -4 -3 ------- Run | Scr Mat Mat Mat Fac Fac Fac Ext Fac Upp Upp Res Peak Influence 111 | . . 85 95 111 83 55 48 97 . . 92 Initial 53 | . . . 35 42 53 40 26 23 . . 32 Average 55 | . . 60 60 67 71 48 27 60 . . 50 Maximum Alert Level . | . . . . . . . . . . . . Low Security (%) 100 | 100 100 100 100 100 100 100 100 100 . . 100 Level 1 . | . . . . . . . . . . . . Level 2 . | . . . . . . . . . . . . Level 3 . | . . . . . . . . . . . . Level 4 . | . . . . . . . . . . . . Level 5 . | . . . . . . . . . . . . High Security . | . . . . . . . . . . . . Max Security . | . . . . . . . . . . . . Squads Dispatched 5 | . . . . . 1 2 1 . . . 1 Investigation 3 | . . . . . 1 . 1 . . . 1 Extermination . | . . . . . . . . . . . . Reinforcement 2 | . . . . . . 2 . . . . . Assault . | . . . . . . . . . . . . Garrison . | . . . . . . . . . . . . Intercept . | . . . . . . . . . . . . Construction Impeded . | . . . . . . . . . . . . Haulers Reinforced 1 | . . . . . . 1 . . . . . Stealth | -11 -10 -9 -8 -7 -6 -5 -5 -4 -4 -4 -3 --------- Run | Scr Mat Mat Mat Fac Fac Fac Ext Fac Upp Upp Res Distress Signals 2 | . . 1 . . . 1 . . . . . Communications Jammed . | . . . . . . . . . . . . Distress Signals . | . . . . . . . . . . . . Times Spotted 79 | . . 9 2 7 6 6 7 7 7 . 28 Peak Tracking Total 26 | . . 6 2 4 5 8 7 7 7 . 26 Tactical Retreats 8 | . . 3 . 2 2 . . . . . 1 Traps | -11 -10 -9 -8 -7 -6 -5 -5 -4 -4 -4 -3 ------- Run | Scr Mat Mat Mat Fac Fac Fac Ext Fac Upp Upp Res Traps Triggered 2 | . . . . 1 1 . . . . . . Indirectly . | . . . . . . . . . . . . Trap Hack Attempts . | . . . . . . . . . . . . Triggered . | . . . . . . . . . . . . Disarmed . | . . . . . . . . . . . . Reprogrammed . | . . . . . . . . . . . . Reused . | . . . . . . . . . . . . Traps Extracted . | . . . . . . . . . . . . Installed . | . . . . . . . . . . . . Triggered . | . . . . . . . . . . . . Machines | -11 -10 -9 -8 -7 -6 -5 -5 -4 -4 -4 -3 ---------- Run | Scr Mat Mat Mat Fac Fac Fac Ext Fac Upp Upp Res Machines Disabled . | . . . . . . . . . . . . Max in Single Turn . | . . . . . . . . . . . . Machines Sabotaged . | . . . . . . . . . . . . Garrisons Compromised . | . . . . . . . . . . . . Overloaded Fab Kills . | . . . . . . . . . . . . Fab Network Shutdowns . | . . . . . . . . . . . . Hacking | -11 -10 -9 -8 -7 -6 -5 -5 -4 -4 -4 -3 --------- Run | Scr Mat Mat Mat Fac Fac Fac Ext Fac Upp Upp Res Machines Accessed 4 | . . . . 1 . . 1 1 . . 1 Terminals 4 | . . . . 1 . . 1 1 . . 1 Fabricators . | . . . . . . . . . . . . Repair Stations . | . . . . . . . . . . . . Recycling Units . | . . . . . . . . . . . . Scanalyzers . | . . . . . . . . . . . . Garrison Access . | . . . . . . . . . . . . Total Hacks 11 | . . . . 2 . . 3 3 . . 3 Successful 3 | . . . . 1 . . 1 1 . . . Failed 8 | . . . . 1 . . 2 2 . . 3 Catastrophic 1 | . . . . . . . 1 . . . . Database Lockouts . | . . . . . . . . . . . . Manual 7 | . . . . 2 . . . 2 . . 3 Terminals 11 | . . . . 2 . . 3 3 . . 3 Fabricators . | . . . . . . . . . . . . Repair Stations . | . . . . . . . . . . . . Recycling Units . | . . . . . . . . . . . . Scanalyzers . | . . . . . . . . . . . . Garrison Access . | . . . . . . . . . . . . Terminal Hacks 3 | . . . . 1 . . 1 1 . . . Open Door 1 | . . . . . . . 1 . . . . Level Access Points 1 | . . . . 1 . . . . . . . Zone Layout 1 | . . . . . . . . 1 . . . Fabricator Hacks . | . . . . . . . . . . . . Repair Station Hacks . | . . . . . . . . . . . . Recycling Unit Hacks . | . . . . . . . . . . . . Scanalyzer . | . . . . . . . . . . . . Garrison Access Hacks . | . . . . . . . . . . . . Unauthorized Hacks . | . . . . . . . . . . . . Terminals . | . . . . . . . . . . . . Fabricators . | . . . . . . . . . . . . Repair Stations . | . . . . . . . . . . . . Recycling Units . | . . . . . . . . . . . . Scanalyzers . | . . . . . . . . . . . . Garrison Access . | . . . . . . . . . . . . Data Cores Recovered . | . . . . . . . . . . . . Used . | . . . . . . . . . . . . Hacking Detections 4 | . . . . 1 . . 1 1 . . 1 Full Trace Events 2 | . . . . . . . 1 . . . 1 Feedback Events 1 | . . . . . . . 1 . . . . Corruption 1 | . . . . . . . 1 . . . . Feedback Blocked . | . . . . . . . . . . . . Robot Schematics Acquired . | . . . . . . . . . . . . Robots Built . | . . . . . . . . . . . . Matter . | . . . . . . . . . . . . Time . | . . . . . . . . . . . . Total Robot Build Rating . | . . . . . . . . . . . . Part Schematics Acquired . | . . . . . . . . . . . . Parts Built . | . . . . . . . . . . . . Matter . | . . . . . . . . . . . . Time . | . . . . . . . . . . . . Total Part Build Rating . | . . . . . . . . . . . . Parts Repaired . | . . . . . . . . . . . . Time . | . . . . . . . . . . . . Parts Recycled . | . . . . . . . . . . . . Recycled Matter . | . . . . . . . . . . . . Retrieved Matter . | . . . . . . . . . . . . Retrieved Components . | . . . . . . . . . . . . Parts Scanalyzed . | . . . . . . . . . . . . Part Schematics Acquired . | . . . . . . . . . . . . Parts Damaged . | . . . . . . . . . . . . Bothacking | -11 -10 -9 -8 -7 -6 -5 -5 -4 -4 -4 -3 ------------ Run | Scr Mat Mat Mat Fac Fac Fac Ext Fac Upp Upp Res Used RIF Installer . | . . . . . . . . . . . . Robots Hacked . | . . . . . . . . . . . . Non-combat . | . . . . . . . . . . . . Combat . | . . . . . . . . . . . . Robot Hacks Applied . | . . . . . . . . . . . . Relay Couplers Released . | . . . . . . . . . . . . Robots Rewired . | . . . . . . . . . . . . Allies Hacked . | . . . . . . . . . . . . Hacks Repelled . | . . . . . . . . . . . . Allies | -11 -10 -9 -8 -7 -6 -5 -5 -4 -4 -4 -3 -------- Run | Scr Mat Mat Mat Fac Fac Fac Ext Fac Upp Upp Res Total Allies . | . . . . . . . . . . . . Largest Group . | . . . . . . . . . . . . Highest-Rated Group . | . . . . . . . . . . . . Highest-Rated Ally . | . . . . . . . . . . . . Total Orders . | . . . . . . . . . . . . Ally Attacks . | . . . . . . . . . . . . Total Damage . | . . . . . . . . . . . . Kills . | . . . . . . . . . . . . Allies Corrupted . | . . . . . . . . . . . . Allies Melted . | . . . . . . . . . . . . Intel | -11 -10 -9 -8 -7 -6 -5 -5 -4 -4 -4 -3 ------- Run | Scr Mat Mat Mat Fac Fac Fac Ext Fac Upp Upp Res Robot Analysis Total . | . . . . . . . . . . . . Derelict Logs Recovered . | . . . . . . . . . . . . Drone Launches . | . . . . . . . . . . . . Drone Recoveries . | . . . . . . . . . . . . Exploration | -11 -10 -9 -8 -7 -6 -5 -5 -4 -4 -4 -3 ------------- Run | Scr Mat Mat Mat Fac Fac Fac Ext Fac Upp Upp Res Turns Passed 982 | 9 19 80 45 134 134 50 70 88 131 48 174 Spaces Moved 1788 | 18 37 149 87 266 242 97 139 169 261 91 232 Core 1788 | 18 37 149 87 266 242 97 139 169 261 91 232 Treads . | . . . . . . . . . . . . Legs . | . . . . . . . . . . . . Wheels . | . . . . . . . . . . . . Hover . | . . . . . . . . . . . . Flight . | . . . . . . . . . . . . Fastest Speed 50 | 50 50 50 50 50 50 50 50 50 50 50 50 Average Speed 50 | 50 50 50 50 50 50 50 50 50 50 50 50 Slowest Speed 50 | 50 50 50 50 50 50 50 50 50 50 50 50 Overloaded Moves . | . . . . . . . . . . . . Propulsion Burnouts . | . . . . . . . . . . . . Robots Hopped . | . . . . . . . . . . . . Cave-ins Triggered . | . . . . . . . . . . . . Exploration Rate (%) 16 | 4 9 25 13 12 8 5 24 8 58 19 11 Regions Visited 11 Branch Regions 3 Pre-discovered Areas . | . . . . . . . . . . . . Known Exits Taken 1 | . . . . 1 . . . . . . . Unknown Exits Taken 10 | 1 1 1 1 . 1 1 1 1 1 1 . Scrap Searched . | . . . . . . . . . . . . Spaces Dug . | . . . . . . . . . . . . Terrain Destroyed . | . . . . . . . . . . . . Melee . | . . . . . . . . . . . . Projectile . | . . . . . . . . . . . . AOE . | . . . . . . . . . . . . Terrain Rammed 3 | . . . . . 3 . . . . . . Walls Destroyed . | . . . . . . . . . . . . Machines Disabled . | . . . . . . . . . . . . Actions | -11 -10 -9 -8 -7 -6 -5 -5 -4 -4 -4 -3 --------- Run | Scr Mat Mat Mat Fac Fac Fac Ext Fac Upp Upp Res Total 1861 | 17 36 153 87 266 254 97 138 171 260 92 290 Wait 71 | . . . . . 10 . . 2 . 2 57 Move 1777 | 17 36 148 86 265 241 96 138 168 260 90 232 Hop . | . . . . . . . . . . . . Pick Up . | . . . . . . . . . . . . Fast Attach . | . . . . . . . . . . . . Attach . | . . . . . . . . . . . . Detach . | . . . . . . . . . . . . Swap . | . . . . . . . . . . . . Drop . | . . . . . . . . . . . . Fire . | . . . . . . . . . . . . Melee . | . . . . . . . . . . . . Ram 13 | . . 5 1 1 3 1 . 1 . . 1 Kick . | . . . . . . . . . . . . Crush . | . . . . . . . . . . . . Escape Stasis . | . . . . . . . . . . . . Rewire . | . . . . . . . . . . . . Trap . | . . . . . . . . . . . . Miscellaneous . | . . . . . . . . . . . . Route ------- -11/Scrapyard -10/Materials -9/Materials -8/Materials (discovered 2 exits: *Fac / [*Sto]) -7/Factory (discovered 4 exits: *Fac x4) -6/Factory -5/Factory -5/Extension -4/Factory -4/Upper Caves (discovered 2 exits: [*Upp] / [*War]) -4/Upper Caves -3/Research History --------- Turn | Location | Event 3 | -11/Scrapyard | Discovered new exit (range 15) 10 | -11/Scrapyard | Entered Materials 25 | -10/Materials | Discovered new exit (range 7) 29 | -10/Materials | Entered another Materials area 29 | -9/Materials | Evolved 2 slots: Power x2 101 | -9/Materials | Core integrity fell below 50% 107 | -9/Materials | Discovered new exit (range 4) 109 | -9/Materials | Entered another Materials area 109 | -8/Materials | Evolved 2 slots: Power x2 122 | -8/Materials | Discovered new exit (range 10) 149 | -8/Materials | Discovered new exit (range 10) 154 | -8/Materials | Entered Factory 154 | -7/Factory | Evolved 2 slots: Power x2 246 | -7/Factory | Identified exit to Factory 288 | -7/Factory | Entered another Factory area 288 | -6/Factory | Evolved 2 slots: Power x2 305 | -6/Factory | Build established: Mutant 420 | -6/Factory | Discovered new exit (range 5) 422 | -6/Factory | Entered another Factory area 422 | -5/Factory | Evolved 2 slots: Power x2 464 | -5/Factory | Discovered new exit (range 16) 472 | -5/Factory | Entered Extension 534 | -5/Extension | Spotted B-75 Beast 536 | -5/Extension | Spotted B-75 Beast 541 | -5/Extension | Discovered new exit (range 3) 542 | -5/Extension | Entered Factory 542 | -4/Factory | Evolved 2 slots: Power x2 622 | -4/Factory | Discovered new exit (range 14) 630 | -4/Factory | Entered Upper Caves 636 | -4/Upper Caves | A Derelict revealed a hidden shortcut to "reach the base" 730 | -4/Upper Caves | Attracted the attention of an 0b10 checkpoint 753 | -4/Upper Caves | Discovered new exit (range 16) 761 | -4/Upper Caves | Entered another Upper Caves area 799 | -4/Upper Caves | Discovered new exit (range 15) 809 | -4/Upper Caves | Entered Research 809 | -3/Research | Evolved 2 slots: Power x2 836 | -3/Research | Spotted B-86 Titan 973 | -3/Research | Core integrity fell below 50% 978 | -3/Research | Core integrity fell below 20% 983 | -3/Research | Destroyed by G-67 Veteran with Plasma Rifle Last Messages --------------- WY-NNJ(g) disappears into a concealed tunnel. 00730_ Y-64 Sentinel: "INTERCEPTING UNREGISTERED DERELICT." 00733_ Slug penetrates Wall. 00753_ EXIT=FOUND LOCATION=UNKNOWN GOAL=ESCAPE 00799_ EXIT=FOUND PARAMETERS=POWER_2 LOCATION=UNKNOWN GOAL=ESCAPE 00841_ Penetrated by Slug. 00841_ Slug penetrates Wall. 00842_ B-86 Titan activates siege mode. 00931_ Connecting with Terminal... 00931_ Current location identified: Research 00931_ ALERT: Suspicious activity at Terminal R011. Dispatching Investigation squad. 00940_ Slammed into K-01 Serf. 00976_ K-01 Serf destroyed. 00979_ S-43 Plague destroyed. Map ----- +----------------------------------------------------+ | ?????????????????????????????????????????????????? | | ?????????????????????????????????????????????????? | | ?????????????????????????????????????????????????? | | ?????????????????????????????????????????????????? | | ?????????????????????????????????????????????????? | | ?????????????????????????????????????????????????? | | ?????????????????????????????????????????????????? | | ?????????????????????????????????????????????????? | | ?????????????????????????????????????????????????? | | ?????????????????????????????????????????????????? | | ????????????????????????? ?????????????????????? | | ????????????????????????? #???????????????????? | | ????????????????????????? #???????????????????? | | ????????????????????????? #???????????????????? | | ????????????????????????? #???????????????????? | | ????????????????????????? #???????????????????? | | ????????????????????????? #???????????????????? | | ????????????????????????# #???????????????????? | | ????????????????????????# #???????????????????? | | ????????????????????????# #???????????????????? | | ????????????????????????# g#???????????????????? | | ????????????????????????# #???????????????????? | | ????????????????????????# g #???????????????????? | | ?????##????????########?# ss #???????????????????? | | ?????# ######### ?#sg #???????????????????? | | ?????# # #@l #???????????????????? | | ?????# ![[ # # s #???????????????????? | | ?????# ![ # + #???????????????????? | | ?????# ![ # # u #???????????????????? | | ?????? # = # #???????????????????? | | ????????! #! ?# u #???????????????????? | | ?????????? # ?# #???????????????????? | | ???????????? # ??#g #???????????????????? | | ##############+########## #???????????????????? | | = =% #???????????????????? | | * %= #???????????????????? | | = #???????????????????? | | #???????????????????? | | #######+###############???????????????????? | | "#???????????????????????????????????????? | | """ ""#???????????????????????????????????????? | | """ ""#???????????????????????????????????????? | | """ ""#???????????????????????????????????????? | | ""#???????????????????????????????????????? | | T"#???????????????????????????????????????? | | ""#???????????????????????????????????????? | | """ ""#???????????????????????????????????????? | | """ ""#???????????????????????????????????????? | | """ ""#???????????????????????????????????????? | | "#???????????????????????????????????????? | +----------------------------------------------------+ Best States ------------- Heat Dissipation 46 Energy Generation 5 Energy Capacity 100 Matter Stores 300 Matter Capacity 300 Sight Range 16 Terrain Scan Density 10 Evasion (%) 50 Item Schematics ----------------- None Robot Schematics ------------------ None Fabricated ------------ Nothing Alien Tech Used ----------------- None Achievements -------------- Streaker Challenges ------------ None Game ------ Seed SpreadGuidedRouter Manual? 0 Play Time 00:15:09 Cumulative 331.3 hours Start 2020.09.21 @ 17:38:23 End 2020.09.21 @ 17:50:40 Sessions 1 Manual Loads 0 Difficulty Rogue Special Mode None Game No. 582 Rogue 582 Adventurer 0 Explorer 0 Win Type - Total 50 Types 37/4/3/2/1/1/2/0/0 Lore% 91 Gallery% 89 Achievement% 72 Wizard Run 0 Options --------- ASCII 1 Keyboard 1 Movement Numpad Keybinds 0 Fullscreen 2 Font 24/Terminus Map View 76x50 Tactical HUD 1 Map Filters NONE Filters NONE Steam 1 RUN: e2bae7af-fa9d-416f-bb35-37daafa9f3ee